fUST/lending_fUST_20240925
["ID","MTS","AMOUNT","RATE_DAILY","PERIOD"]
[339075813,1727206241520,-246.32909674,0.00023157,7]
[339075814,1727206241529,-153.0,0.00023216,2]
[339075815,1727206241539,-302.45563732,0.0002323,2]
[339075816,1727206241549,-302.45563732,0.0002323,2]
[339075817,1727206241558,-151.0,0.00023288,7]
[339075818,1727206241569,-181.2,0.00023288,7]
[339075819,1727206241578,-181.2,0.00023288,7]
[339075820,1727206241589,-150.0,0.00023288,7]
[339075821,1727206241598,-150.0,0.00023315,7]
[339075822,1727206241607,-150.0,0.00023343,7]
[339075823,1727206241617,-153.0,0.00023369,2]
[339075824,1727206241627,-153.0,0.00023369,2]
[339075825,1727206241636,-153.0,0.00023369,2]
[339075826,1727206241646,-153.0,0.00023369,2]
[339075827,1727206241656,-153.0,0.00023369,2]
[339075828,1727206241666,-153.0,0.00023369,2]
[339075829,1727206241676,-153.0,0.00023369,2]
[339075830,1727206241686,-153.0,0.00023369,2]
[339075831,1727206241695,-153.0,0.00023369,2]
[339075832,1727206241705,-153.0,0.00023369,2]
[339075833,1727206241714,-153.0,0.00023369,2]
[339075834,1727206241724,-153.0,0.00023369,2]
[339075835,1727206241733,-153.0,0.00023369,2]
[339075836,1727206241743,-153.0,0.00023369,2]
[339075837,1727206241752,-153.0,0.00023369,2]
[339075838,1727206241761,-153.0,0.00023369,2]
[339075839,1727206241772,-153.0,0.00023369,2]
[339075840,1727206241781,-153.0,0.00023369,2]
[339075841,1727206241791,-153.0,0.00023369,2]
[339075842,1727206241800,-153.0,0.00023369,2]
[339075843,1727206241810,-153.0,0.00023369,2]
[339075844,1727206241820,-153.0,0.00023369,2]
[339075845,1727206241829,-153.0,0.00023369,2]
[339075846,1727206241839,-153.0,0.00023369,2]
[339075847,1727206241848,-153.0,0.00023369,2]
[339075848,1727206241857,-153.0,0.00023369,2]
[339075849,1727206241866,-153.0,0.00023369,2]
[339075850,1727206241876,-153.0,0.00023369,2]
[339075851,1727206241886,-153.0,0.00023369,2]
[339075852,1727206241895,-153.0,0.00023369,2]
[339075853,1727206241904,-153.0,0.00023369,2]
[339075854,1727206242010,-153.0,0.00023369,2]
[339075855,1727206242020,-153.0,0.00023369,2]
[339075856,1727206242032,-153.0,0.00023369,2]
[339075857,1727206242043,-153.0,0.00023369,2]
[339075858,1727206242054,-153.0,0.00023369,2]
[339075859,1727206242064,-153.0,0.00023369,2]
[339075860,1727206242073,-153.0,0.00023369,2]
[339075861,1727206242082,-153.0,0.00023369,2]
[339075862,1727206242091,-153.0,0.00023369,2]
[339075863,1727206242100,-153.0,0.00023369,2]
[339075864,1727206242110,-153.0,0.00023369,2]
[339075865,1727206242120,-153.0,0.00023369,2]
[339075866,1727206242129,-153.0,0.00023369,2]
[339075867,1727206242140,-153.0,0.00023369,2]
[339075868,1727206242151,-153.0,0.00023369,2]
[339075869,1727206242160,-153.0,0.00023369,2]
[339075870,1727206242169,-153.0,0.00023369,2]
[339075871,1727206242179,-153.0,0.00023369,2]
[339075872,1727206242188,-153.0,0.00023369,2]
[339075873,1727206242200,-153.0,0.00023369,2]
[339075874,1727206242209,-153.0,0.00023369,2]
[339075875,1727206242219,-153.0,0.00023369,2]
[339075876,1727206242228,-153.0,0.00023369,2]
[339075877,1727206242237,-153.0,0.00023369,2]
[339075878,1727206242246,-153.0,0.00023369,2]
[339075879,1727206242255,-153.0,0.00023369,2]
[339075880,1727206242265,-153.0,0.00023369,2]
[339075881,1727206242275,-153.0,0.00023369,2]
[339075882,1727206242284,-153.0,0.00023369,2]
[339075883,1727206242293,-153.0,0.00023369,2]
[339075884,1727206242302,-153.0,0.00023369,2]
[339075885,1727206242312,-153.0,0.00023369,2]
[339075886,1727206242321,-153.0,0.00023369,2]
[339075887,1727206242330,-153.0,0.00023369,2]
[339075888,1727206242339,-153.0,0.00023369,2]
[339075889,1727206242349,-153.0,0.00023369,2]
[339075891,1727206242358,-153.0,0.00023369,2]
[339075892,1727206242367,-153.0,0.00023369,2]
[339075893,1727206242377,-153.0,0.00023369,2]
[339075894,1727206242386,-153.0,0.00023369,2]
[339075895,1727206242395,-153.0,0.00023369,2]
[339075896,1727206242404,-153.0,0.00023369,2]
[339075897,1727206242414,-153.0,0.00023369,2]
[339075898,1727206242424,-153.0,0.00023369,2]
[339075899,1727206242434,-150.0,0.0002337,7]
[339075900,1727206242446,-150.112233,0.000234,4]
[339075902,1727206242455,-150.112236,0.000234,3]
[339075903,1727206242464,-246.32909674,0.00023406,7]
[339075904,1727206242473,-166.666666,0.00023456,2]
[339075908,1727206242482,-302.45563732,0.0002346,2]
[339075912,1727206242492,-302.45563732,0.0002346,2]
[339075914,1727206242501,-1613.0,0.00023533,2]
[339075915,1727206242510,-246.32909674,0.00023655,7]
[339075916,1727206242520,-302.45563732,0.0002369,2]
[339075917,1727206242531,-393.32519646,0.0002369,2]
[339075918,1727206242542,-3500.0,0.00023726,2]
[339075919,1727206242552,-246.32909674,0.00023904,7]
[339075920,1727206242563,-302.45563732,0.0002392,2]
[339075921,1727206242574,-166.666666,0.00023969,2]
[339075922,1727206242583,-6413.8817115,0.0002397,2]
[339075923,1727206242593,-328.59027,0.00024,7]
[339075925,1727206242602,-328.59027,0.00024,7]
[339075926,1727206242611,-288.5746376,0.00024,30]
[339075927,1727206242620,-453.68345598,0.0002415,4]
[339075928,1727206242629,-246.32909674,0.00024153,7]
[339075929,1727206242638,-150.112233,0.000242,2]
[339075930,1727206242647,-150.112233,0.000242,2]
[339075931,1727206242657,-620.00305297,0.0002431,2]
[339075932,1727206242666,-2500.0,0.00024356,2]
[339075933,1727206242675,-453.68345598,0.0002438,4]
[339075934,1727206242684,-246.32909674,0.00024402,7]
[339075935,1727206242694,-219.8,0.00024437,2]
[339075937,1727206242703,-166.666666,0.00024482,2]
[339075938,1727206242712,-233.05192022,0.0002461,4]
[339075940,1727206242722,-246.32909674,0.00024651,7]
[339075942,1727206242731,-380.0,0.00024658,2]
[339075944,1727206242740,-200.0,0.00024658,15]
[339075946,1727206242750,-200.0,0.00024658,2]
[339075948,1727206242759,-3665.71,0.000247,14]
[339075950,1727206242769,-13829.47,0.000247,14]
[339075952,1727206242778,-1701.82154913,0.000249,2]
[339075954,1727206242787,-246.82,0.000249,7]
[339075956,1727206242797,-559.321979,0.0002499,7]
[339075958,1727206242806,-559.321979,0.0002499,7]
[339075960,1727206242816,-2550.682353,0.0002499,7]
[339075962,1727206242825,-2550.682353,0.0002499,7]
[339075964,1727206242835,-151.0,0.0002499,7]
[339075966,1727206242844,-151.0,0.0002499,7]
[339075968,1727206242853,-151.0,0.0002499,7]
[339075971,1727206242864,-151.0,0.0002499,7]
[339075973,1727206242873,-151.0,0.0002499,7]
[339075975,1727206242882,-151.0,0.0002499,7]
[339075977,1727206242891,-151.0,0.0002499,7]
[339075978,1727206242900,-754.927123,0.0002499,7]
[339075980,1727206242909,-754.927123,0.0002499,7]
[339075982,1727206242919,-545.94284,0.0002499,7]
[339075984,1727206242929,-545.94284,0.0002499,7]
[339075986,1727206242938,-216.355543,0.0002499,7]
[339075988,1727206242948,-216.355543,0.0002499,7]
[339075990,1727206242962,-151.0,0.0002499,7]
[339075992,1727206242971,-151.0,0.0002499,7]
[339075994,1727206242980,-955.236636,0.0002499,7]
[339075996,1727206242989,-955.236636,0.0002499,7]
[339075998,1727206242999,-160.975284,0.0002499,7]
[339076000,1727206243008,-151.0,0.0002499,2]
[339076002,1727206243017,-160.975284,0.0002499,7]
[339076004,1727206243027,-180.191828,0.0002499,7]
[339076006,1727206243038,-180.191828,0.0002499,7]
[339076008,1727206243047,-151.0,0.0002499,7]
[339076010,1727206243056,-151.0,0.0002499,7]
[339076012,1727206243065,-252.298921,0.0002499,7]
[339076014,1727206243074,-252.298921,0.0002499,7]
[339076016,1727206243084,-616.479181,0.0002499,7]
[339076018,1727206243094,-616.479181,0.0002499,7]
[339076021,1727206243103,-319.195538,0.0002499,7]
[339076023,1727206243112,-319.195538,0.0002499,7]
[339076025,1727206243122,-151.0,0.0002499,7]
[339076027,1727206243131,-151.0,0.0002499,7]
[339076029,1727206243140,-192.428231,0.0002499,7]
[339076031,1727206243149,-192.428231,0.0002499,7]
[339076033,1727206243159,-87017.68814,0.00025,2]
[339076035,1727206243167,-500.0,0.00025,30]
[339076037,1727206243177,-500.0,0.00025,30]
[339076039,1727206243186,-500.0,0.00025,30]
[339076041,1727206243197,-500.0,0.00025,30]
[339076042,1727206243206,-500.0,0.00025,30]
[339076045,1727206243216,-500.0,0.00025,30]
[339076047,1727206243225,-500.0,0.00025,30]
[339076048,1727206243234,-500.0,0.00025,30]
[339076050,1727206243243,-500.0,0.00025,30]
[339076052,1727206243252,-500.0,0.00025,30]
[339076054,1727206243261,-500.0,0.00025,30]
[339076056,1727206243270,-500.0,0.00025,30]
[339076058,1727206243280,-500.0,0.00025,30]
[339076060,1727206243289,-500.0,0.00025,30]
[339076062,1727206243298,-500.0,0.00025,30]
[339076064,1727206243307,-500.0,0.00025,30]
[339076066,1727206243316,-500.0,0.00025,30]
[339076068,1727206243325,-276.7152443,0.00025,30]
[339076070,1727206243335,-500.0,0.00025,30]
[339076072,1727206243344,-499.3,0.00025,30]
[339076074,1727206243353,-500.0,0.00025,30]
[339076076,1727206243362,-500.0,0.00025,30]
[339076078,1727206243371,-500.0,0.00025,30]
[339076092,1727206243494,-500.0,0.00025,30]
[339076093,1727206243503,-500.0,0.00025,30]
[339076095,1727206243512,-500.0,0.00025,30]
[339076097,1727206243521,-502.68246318,0.00025,30]
[339076099,1727206243531,-500.0,0.00025,30]
[339076100,1727206243540,-500.0,0.00025,30]
[339076102,1727206243549,-546.22848721,0.00025,30]
[339076104,1727206243558,-500.0,0.00025,30]
[339076105,1727206243567,-500.0,0.00025,30]
[339076107,1727206243576,-503.03129971,0.00025,30]
[339076108,1727206243586,-502.5224074,0.00025,30]
[339076109,1727206243595,-154.74467129,0.00025,30]
[339076110,1727206243604,-558.78265467,0.00025,30]
[339076111,1727206243613,-500.0,0.00025,30]
[339076112,1727206243622,-500.0,0.00025,30]
[339076113,1727206243632,-500.0,0.00025,30]
[339076114,1727206243641,-700.0,0.00025,30]
[339076115,1727206243652,-939.38006789,0.00025,30]
[339076116,1727206243661,-500.0,0.00025,30]
[339076117,1727206243670,-700.0,0.00025,30]
[339076118,1727206243679,-500.0,0.00025,30]
[339076119,1727206243689,-500.0,0.00025,30]
[339076120,1727206243699,-700.0,0.00025,30]
[339076121,1727206243708,-500.0,0.00025,30]
[339076122,1727206243718,-500.0,0.00025,30]
[339076123,1727206243727,-700.0,0.00025,30]
[339076124,1727206243737,-500.0,0.00025,30]
[339076125,1727206243746,-700.0,0.00025,30]
[339076126,1727206243755,-500.0,0.00025,30]
[339076127,1727206243764,-500.0,0.00025,30]
[339076128,1727206243773,-700.0,0.00025,30]
[339076129,1727206243782,-500.0,0.00025,30]
[339076130,1727206243792,-700.0,0.00025,30]
[339076131,1727206243801,-500.0,0.00025,30]
[339076132,1727206243810,-700.0,0.00025,30]
[339076133,1727206243821,-500.0,0.00025,30]
[339076134,1727206243830,-700.0,0.00025,30]
[339076135,1727206243839,-500.0,0.00025,30]
[339076136,1727206243850,-700.0,0.00025,30]
[339076137,1727206243859,-500.0,0.00025,30]
[339076138,1727206243868,-700.0,0.00025,30]
[339076139,1727206243878,-700.0,0.00025,30]
[339076140,1727206243887,-700.0,0.00025,30]
[339076141,1727206243896,-499.3,0.00025,30]
[339076142,1727206243905,-154.74467129,0.00025,30]
[339076143,1727206243915,-199.04,0.00025,2]
[339076144,1727206243924,-500.0,0.00025,30]
[339076145,1727206243934,-500.0,0.00025,30]
[339076146,1727206243945,-500.0,0.00025,30]
[339076147,1727206243958,-500.0,0.00025,30]
[339076148,1727206243970,-500.0,0.00025,30]
[339076149,1727206243980,-500.0,0.00025,30]
[339076150,1727206243989,-500.0,0.00025,30]
[339076151,1727206243998,-503.11332835,0.00025,30]
[339076152,1727206244008,-500.0,0.00025,30]
[339076153,1727206244018,-511.0531615,0.00025,30]
[339076154,1727206244027,-500.0,0.00025,30]
[339076155,1727206244037,-500.0,0.00025,30]
[339076156,1727206244047,-500.0,0.00025,30]
[339076157,1727206244056,-500.0,0.00025,30]
[339076158,1727206244066,-500.0,0.00025,30]
[339076159,1727206244075,-508.26061031,0.00025,30]
[339076160,1727206244084,-500.0,0.00025,30]
[339076161,1727206244093,-880.43717047,0.00025,30]
[339076162,1727206244103,-500.0,0.00025,30]
[339076163,1727206244112,-500.0,0.00025,30]
[339076164,1727206244121,-500.0,0.00025,30]
[339076165,1727206244131,-500.0,0.00025,30]
[339076166,1727206244140,-500.0,0.00025,30]
[339076167,1727206244149,-500.0,0.00025,30]
[339076168,1727206244159,-1000.0,0.00025,25]
[339076169,1727206244168,-525.37184437,0.00025,30]
[339076170,1727206244177,-6565.676157,0.00025,3]
[339076171,1727206244187,-745.94196,0.00025,7]
[339076172,1727206244197,-745.94196,0.00025,7]
[339076173,1727206244206,-647.007384,0.00025,7]
[339076174,1727206244215,-647.007384,0.00025,7]
[339076175,1727206244225,-151.0,0.00025,7]
[339076176,1727206244235,-1359.26203,0.00025,7]
[339076177,1727206244244,-251.949632,0.00025,7]
[339076178,1727206244253,-1359.26203,0.00025,7]
[339076179,1727206244263,-251.949632,0.00025,7]
[339076180,1727206244272,-310.631157,0.00025,7]
[339076181,1727206244281,-310.631157,0.00025,7]
[339076182,1727206244290,-56572.96570113,0.00025,2]
[339076183,1727206244299,-164.49344774,0.00025,2]
[339076184,1727206244308,-202.1167154,0.00025,2]
[339076185,1727206244317,-10364.0,0.00025,2]
[339076186,1727206244326,-344.4458257,0.00025,2]
[339076187,1727206244335,-822.5140414,0.00025,2]
[339076188,1727206244344,-151.0,0.00025,7]
[339076189,1727206244353,-4149.900573,0.00025,7]
[339076190,1727206244362,-4149.900573,0.00025,7]
[339076191,1727206244372,-410.607804,0.00025,7]
[339076192,1727206244381,-410.607804,0.00025,7]
[339076193,1727206244390,-151.0,0.00025,7]
[339076194,1727206244400,-151.0,0.00025,7]
[339076195,1727206244409,-150.0,0.00025073,2]
[339076196,1727206244419,-153.0,0.00025085,2]
[339076197,1727206244428,-153.0,0.00025085,2]
[339076198,1727206244437,-328.59027,0.0002509,7]
[339076199,1727206244448,-328.59027,0.0002509,7]
[339076200,1727206244457,-314109.34894465,0.0002509,2]
[339076201,1727206244466,-410.607804,0.0002509,7]
[339076202,1727206244475,-410.607804,0.0002509,7]
[339076203,1727206244484,-151.0,0.0002509,7]
[339076204,1727206244493,-306.0000002,0.0002512,2]
[339076205,1727206244502,-1985.63897325,0.00025122,2]
[339076206,1727206244512,-331.4071334,0.00025134,2]
[339076207,1727206244522,-306.0,0.00025134,2]
[339076208,1727206244531,-219.8,0.00025233,2]
[339076209,1727206244541,-414.913152,0.00025267,7]
[339076210,1727206244550,-414.913152,0.00025267,7]
[339076211,1727206244561,-607.969013,0.00025267,7]
[339076212,1727206244570,-607.969013,0.00025267,7]
[339076213,1727206244580,-151.0,0.00025275,7]
[339076214,1727206244590,-151.0,0.00025275,7]
[339076215,1727206244599,-388.998849,0.00025275,7]
[339076216,1727206244609,-388.998849,0.00025275,7]
[339076217,1727206244618,-151.0,0.00025275,7]
[339076218,1727206244628,-151.0,0.00025275,7]
[339076219,1727206244638,-153.0,0.00025562,2]
[339076220,1727206244647,-250.0,0.00025621,2]
[339076221,1727206244657,-200.0,0.00025653,2]
[339076222,1727206244667,-4000.0,0.00025821,2]
[339076223,1727206244676,-45849.33023653,0.00025849,2]
[339076224,1727206244686,-100000.0,0.00025849,2]
[339076225,1727206244698,-559.321979,0.00025849,7]
[339076226,1727206244707,-559.321979,0.00025849,7]
[339076227,1727206244717,-2550.682353,0.00025849,7]
[339076228,1727206244727,-2550.682353,0.00025849,7]
[339076229,1727206244736,-151.0,0.00025849,7]
[339076230,1727206244839,-151.0,0.00025849,7]
[339076231,1727206244849,-151.0,0.00025849,7]
[339076232,1727206244859,-151.0,0.00025849,7]
[339076233,1727206244868,-151.0,0.00025849,7]
[339076234,1727206244878,-1758.030362,0.00025849,7]
[339076235,1727206244887,-151.0,0.00025849,7]
[339076236,1727206244896,-1758.030362,0.00025849,7]
[339076237,1727206244905,-151.0,0.00025849,7]
[339076238,1727206244914,-754.927123,0.00025849,7]
[339076239,1727206244923,-754.927123,0.00025849,7]
[339076240,1727206244932,-545.94284,0.00025849,7]
[339076241,1727206244941,-545.94284,0.00025849,7]
[339076242,1727206244951,-216.355543,0.00025849,7]
[339076243,1727206244963,-216.355543,0.00025849,7]
[339076244,1727206244972,-414.913152,0.00025849,7]
[339076245,1727206244981,-1028.634151,0.00025849,7]
[339076246,1727206244991,-414.913152,0.00025849,7]
[339076247,1727206245000,-151.0,0.00025849,7]
[339076248,1727206245010,-1028.634151,0.00025849,7]
[339076249,1727206245019,-151.0,0.00025849,7]
[339076250,1727206245029,-607.969013,0.00025849,7]
[339076251,1727206245039,-607.969013,0.00025849,7]
[339076252,1727206245048,-955.236636,0.00025849,7]
[339076253,1727206245058,-955.236636,0.00025849,7]
[339076254,1727206245067,-160.975284,0.00025849,7]
[339076255,1727206245076,-151.0,0.00025849,2]
[339076256,1727206245085,-160.975284,0.00025849,7]
[339076257,1727206245095,-2000.0,0.00025849,2]
[339076258,1727206245103,-2000.0,0.00025849,2]
[339076259,1727206245113,-2000.0,0.00025849,2]
[339076260,1727206245122,-2000.0,0.00025849,2]
[339076261,1727206245132,-2000.0,0.00025849,2]
[339076262,1727206245141,-2000.0,0.00025849,2]
[339076263,1727206245151,-2000.0,0.00025849,2]
[339076264,1727206245160,-2000.0,0.00025849,2]
[339076265,1727206245170,-2000.0,0.00025849,2]
[339076266,1727206245179,-2000.0,0.00025849,2]
[339076267,1727206245189,-1327.596309,0.00025849,2]
[339076268,1727206245202,-180.191828,0.00025849,7]
[339076269,1727206245212,-180.191828,0.00025849,7]
[339076270,1727206245222,-151.0,0.00025849,7]
[339076271,1727206245234,-151.0,0.00025849,7]
[339076272,1727206245245,-252.298921,0.00025849,7]
[339076273,1727206245256,-252.298921,0.00025849,7]
[339076274,1727206245266,-616.479181,0.00025849,7]
[339076275,1727206245276,-616.479181,0.00025849,7]
[339076276,1727206245287,-319.195538,0.00025849,7]
[339076277,1727206245297,-745.94196,0.00025849,7]
[339076278,1727206245307,-319.195538,0.00025849,7]
[339076279,1727206245316,-745.94196,0.00025849,7]
[339076280,1727206245326,-151.0,0.00025849,7]
[339076281,1727206245336,-168.215999,0.00025849,7]
[339076282,1727206245346,-192.428231,0.00025849,7]
[339076283,1727206245356,-192.428231,0.00025849,7]
[339076284,1727206245365,-1359.26203,0.00025849,7]
[339076285,1727206245375,-251.949632,0.00025849,7]
[339076286,1727206245385,-1359.26203,0.00025849,7]
[339076288,1727206245395,-251.949632,0.00025849,7]
[339076290,1727206245404,-310.631157,0.00025849,7]
[339076292,1727206245413,-310.631157,0.00025849,7]
[339076294,1727206245423,-151.0,0.00025849,7]
[339076296,1727206245432,-151.0,0.00025849,7]
[339076297,1727206245447,-715.871,0.0002585,11]
[339076299,1727206245469,-191.56270701,0.0002585,11]
[339076301,1727206245488,-1248.0,0.00025886,2]
[339076302,1727206245508,-500.0,0.000259,7]
[339076303,1727206245530,-164.77,0.000259,7]
[339076304,1727206245548,-209.0432937,0.00025929,2]
[339076305,1727206245568,-209.0432937,0.00025929,2]
[339076306,1727206245582,-418.0865874,0.00025929,2]
[339076308,1727206245602,-209.0432937,0.00025929,2]
[339076311,1727206245624,-418.0865874,0.00025929,2]
[339076313,1727206245637,-209.0432937,0.00025942,2]
[339076315,1727206245654,-153.0,0.00025956,2]
[339076317,1727206245672,-153.0,0.00025956,2]
[339076318,1727206245689,-153.0,0.00025956,2]
[339076319,1727206245703,-153.0,0.00025956,2]
[339076320,1727206245718,-153.0,0.00025956,2]
[339076321,1727206245733,-153.0,0.00025956,2]
[339076322,1727206245748,-153.0,0.00025956,2]
[339076323,1727206245763,-153.0,0.00025956,2]
[339076324,1727206245778,-153.0,0.00025956,2]
[339076325,1727206245794,-153.0,0.00025996,2]
[339076326,1727206245810,-500.0,0.00025999,120]
[339076327,1727206245825,-500.0,0.00025999,120]
[339076328,1727206245841,-500.0,0.00025999,120]
[339076329,1727206245856,-500.0,0.00025999,120]
[339076330,1727206245872,-500.0,0.00025999,120]
[339076331,1727206245887,-500.0,0.00025999,120]
[339076332,1727206245901,-500.0,0.00025999,120]
[339076333,1727206245915,-500.0,0.00025999,120]
[339076334,1727206245931,-500.0,0.00025999,120]
[339076335,1727206245946,-500.0,0.00025999,120]
[339076336,1727206245963,-341.46,0.00025999,120]
[339076337,1727206245978,-540.7,0.00026,31]
[339076338,1727206245994,-525.00043144,0.00026,2]
[339076339,1727206246010,-1000.0,0.00026,2]
[339076340,1727206246025,-219.8,0.0002603,2]
[339076341,1727206246041,-153.0,0.00026044,2]
[339076342,1727206246056,-1000.0,0.00026067,2]
[339076343,1727206246072,-3000.0,0.00026099,2]
[339076344,1727206246088,-165.0,0.0002614,14]
[339076345,1727206246103,-413.24586938,0.00026168,2]
[339076346,1727206246118,-1000.0,0.00026261,2]
[339076347,1727206246134,-1000.0,0.00026289,2]
[339076348,1727206246149,-3000.0,0.000263,2]
[339076349,1727206246165,-660.0,0.00026301,2]
[339076350,1727206246182,-3000.0,0.0002631,2]
[339076351,1727206246197,-1000.0,0.00026312,2]
[339076352,1727206246212,-3000.0,0.0002632,2]
[339076353,1727206246228,-591.703,0.00026328,2]
[339076354,1727206246244,-525.0,0.00026328,2]
[339076355,1727206246260,-154.334,0.00026328,2]
[339076356,1727206246275,-3000.0,0.0002633,2]
[339076357,1727206246290,-151.0,0.0002633,7]
[339076358,1727206246304,-1000.0,0.00026332,2]
[339076359,1727206246320,-3000.0,0.0002634,2]
[339076360,1727206246334,-647.007384,0.0002634,7]
[339076361,1727206246351,-647.007384,0.0002634,7]
[339076362,1727206246362,-4149.900573,0.0002634,7]
[339076363,1727206246371,-4149.900573,0.0002634,7]
[339076364,1727206246381,-3000.0,0.0002635,2]
[339076365,1727206246548,-3000.0,0.0002636,2]
[339076366,1727206246568,-3000.0,0.0002637,2]
[339076367,1727206246577,-3000.0,0.0002638,2]
[339076368,1727206246587,-155.624608,0.0002638,7]
[339076369,1727206246597,-410.607804,0.0002638,7]
[339076370,1727206246607,-410.607804,0.0002638,7]
[339076371,1727206246616,-151.0,0.0002638,7]
[339076372,1727206246625,-153.0,0.00026384,2]
[339076373,1727206246635,-153.0,0.00026384,2]
[339076374,1727206246645,-151.0,0.00026389,7]
[339076375,1727206246656,-151.0,0.00026389,7]
[339076376,1727206246665,-388.998849,0.00026389,7]
[339076377,1727206246675,-388.998849,0.00026389,7]
[339076378,1727206246684,-3000.0,0.0002639,2]
[339076379,1727206246694,-344.71368664,0.00026395,2]
[339076380,1727206246704,-3000.0,0.000264,2]
[339076381,1727206246714,-3000.0,0.0002641,2]
[339076382,1727206246724,-3000.0,0.0002642,2]
[339076383,1727206246733,-328.59027,0.0002643,7]
[339076384,1727206246743,-328.59027,0.0002643,7]
[339076385,1727206246753,-296.868852,0.0002643,7]
[339076386,1727206246763,-296.868852,0.0002643,7]
[339076387,1727206246772,-534.24505,0.0002643,7]
[339076388,1727206246781,-534.24505,0.0002643,7]
[339076389,1727206246791,-3000.0,0.0002643,2]
[339076390,1727206246801,-432.063436,0.0002644,7]
[339076391,1727206246810,-432.063436,0.0002644,7]
[339076392,1727206246820,-212.858089,0.0002644,7]
[339076393,1727206246829,-151.0,0.0002644,7]
[339076394,1727206246839,-151.0,0.0002644,7]
[339076395,1727206246849,-3000.0,0.0002644,2]
[339076396,1727206246858,-3000.0,0.0002645,2]
[339076397,1727206246868,-269.717999,0.0002646,7]
[339076398,1727206246878,-151.0,0.0002646,7]
[339076399,1727206246888,-151.0,0.0002646,7]
[339076400,1727206246897,-3000.0,0.0002646,2]
[339076401,1727206246906,-151.0,0.0002647,7]
[339076402,1727206246916,-151.0,0.0002647,7]
[339076403,1727206246925,-279.027112,0.0002647,7]
[339076404,1727206246935,-279.027112,0.0002647,7]
[339076405,1727206246946,-3000.0,0.0002647,2]
[339076406,1727206246955,-247.289007,0.0002648,7]
[339076407,1727206246969,-247.289007,0.0002648,7]
[339076408,1727206246978,-3000.0,0.0002648,2]
[339076409,1727206246988,-3000.0,0.0002649,2]
[339076410,1727206246998,-7458.94652043,0.0002649,2]
[339076411,1727206247007,-3665.71,0.000265,14]
[339076412,1727206247017,-13829.47,0.000265,14]
[339076413,1727206247026,-151.0,0.000265,7]
[339076414,1727206247035,-150.0,0.000265,7]
[339076415,1727206247046,-181.2,0.000265,7]
[339076416,1727206247056,-181.2,0.000265,7]
[339076417,1727206247066,-151.0,0.000265,7]
[339076418,1727206247076,-3000.0,0.000265,2]
[339076419,1727206247086,-955.236636,0.000265,7]
[339076420,1727206247095,-955.236636,0.000265,7]
[339076421,1727206247104,-160.975284,0.000265,7]
[339076422,1727206247113,-151.0,0.000265,2]
[339076423,1727206247123,-160.975284,0.000265,7]
[339076424,1727206247133,-180.191828,0.000265,7]
[339076425,1727206247142,-180.191828,0.000265,7]